[Event "Live Chess"]
[Site "Chess.com"]
[Date "2023.05.20"]
[Round "-"]
[White "LanceMaster23"]
[Black "alanmike75"]
[Result "1-0"]
[WhiteElo "1865"]
[BlackElo "1529"]
[TimeControl "300"]
[EndTime "12:27:10 PDT"]
[Termination "LanceMaster23 won by resignation"]

1. Nf3 {[%clk 0:04:58.6]} 1... Nf6 {[%clk 0:04:56.6]} 2. d4 {[%clk 0:04:58.1]}
2... d5 {[%clk 0:04:55.4]} 3. Bf4 {[%clk 0:04:57.6]} 3... e6 {[%clk 0:04:53.9]}
4. e3 {[%clk 0:04:57.1]} 4... Bd6 {[%clk 0:04:52.7]} 5. Bg3 {[%clk 0:04:56.7]}
5... O-O {[%clk 0:04:49.9]} 6. Nbd2 {[%clk 0:04:55.5]} 6... b6 {[%clk
0:04:46.4]} 7. c3 {[%clk 0:04:55.1]} 7... Bb7 {[%clk 0:04:45.4]} 8. Be2 {[%clk
0:04:53.6]} 8... Nc6 {[%clk 0:04:42.6]} 9. O-O {[%clk 0:04:52.9]} 9... Ne7
{[%clk 0:04:41.4]} 10. Re1 {[%clk 0:04:46.1]} 10... Nf5 {[%clk 0:04:40]} 11. Qc2
{[%clk 0:04:43.2]} 11... Nxg3 {[%clk 0:04:37.9]} 12. hxg3 {[%clk 0:04:43.1]}
12... Ne4 {[%clk 0:04:35]} 13. Nxe4 {[%clk 0:04:41.9]} 13... dxe4 {[%clk
0:04:33.9]} 14. Nd2 {[%clk 0:04:41.4]} 14... f5 {[%clk 0:04:32.1]} 15. Bc4
{[%clk 0:04:40.9]} 15... Bd5 {[%clk 0:04:29.9]} 16. Qb3 {[%clk 0:04:39.8]} 16...
Be7 {[%clk 0:04:23.8]} 17. Bxd5 {[%clk 0:04:31.3]} 17... exd5 {[%clk 0:04:22.5]}
18. c4 {[%clk 0:04:30.5]} 18... c6 {[%clk 0:04:18.3]} 19. Rac1 {[%clk 0:04:29]}
19... Kh8 {[%clk 0:04:15.9]} 20. cxd5 {[%clk 0:04:25.9]} 20... cxd5 {[%clk
0:04:12.3]} 21. Rc6 {[%clk 0:04:10.1]} 21... Qd7 {[%clk 0:03:57.2]} 22. Rec1
{[%clk 0:04:08]} 22... Rac8 {[%clk 0:03:46.6]} 23. Rxc8 {[%clk 0:03:58.6]} 23...
Rxc8 {[%clk 0:03:44.3]} 24. Rxc8+ {[%clk 0:03:58.3]} 24... Qxc8 {[%clk
0:03:43.2]} 25. Qxd5 {[%clk 0:03:58]} 25... Qc1+ {[%clk 0:03:40.8]} 26. Nf1
{[%clk 0:03:56.8]} 26... Qc8 {[%clk 0:03:33.4]} 27. Qf7 {[%clk 0:03:43]} 27...
Qf8 {[%clk 0:03:24.9]} 28. Qxf8+ {[%clk 0:03:28.4]} 28... Bxf8 {[%clk
0:03:23.1]} 29. g4 {[%clk 0:03:28.1]} 29... g6 {[%clk 0:03:20.3]} 30. gxf5
{[%clk 0:03:26.6]} 30... gxf5 {[%clk 0:03:19.3]} 31. g4 {[%clk 0:03:26.1]} 31...
fxg4 {[%clk 0:03:13.5]} 32. Ng3 {[%clk 0:03:24]} 32... Kg7 {[%clk 0:03:07]} 33.
Nxe4 {[%clk 0:03:22.5]} 33... Kg6 {[%clk 0:03:06]} 34. Nc3 {[%clk 0:03:07]}
34... h5 {[%clk 0:02:58.6]} 35. e4 {[%clk 0:03:00.3]} 35... Kg5 {[%clk
0:02:47.6]} 36. Ne2 {[%clk 0:02:51.7]} 36... h4 {[%clk 0:02:43.3]} 37. Kg2
{[%clk 0:02:51.2]} 37... Bb4 {[%clk 0:02:35.5]} 38. f4+ {[%clk 0:02:38.2]} 38...
gxf3+ {[%clk 0:02:28.6]} 39. Kxf3 {[%clk 0:02:37.5]} 39... Bd2 {[%clk
0:02:21.9]} 40. d5 {[%clk 0:02:35.9]} 40... Kf6 {[%clk 0:02:18.1]} 41. Nd4
{[%clk 0:02:29.9]} 41... Bc1 {[%clk 0:02:05.6]} 42. b3 {[%clk 0:02:19.4]} 42...
a5 {[%clk 0:01:53.8]} 43. Nc6 {[%clk 0:02:13.6]} 43... Bb2 {[%clk 0:01:42.8]}
44. a4 {[%clk 0:02:12.3]} 44... Bc3 {[%clk 0:01:26.4]} 45. Kg4 {[%clk
0:02:08.3]} 45... Be1 {[%clk 0:01:22]} 46. e5+ {[%clk 0:02:07.5]} 46... Kf7
{[%clk 0:01:19.3]} 47. e6+ {[%clk 0:02:06.5]} 47... Ke8 {[%clk 0:01:16.8]} 48.
d6 {[%clk 0:02:04.8]} 1-0

[Event "Live Chess"]
[Site "Chess.com"]
[Date "2023.05.20"]
[Round "-"]
[White "Tushinskiy"]
[Black "LutherSullivan"]
[Result "0-1"]
[WhiteElo "2093"]
[BlackElo "1940"]
[TimeControl "300"]
[EndTime "12:27:12 PDT"]
[Termination "LutherSullivan won - game abandoned"]

1. d4 {[%clk 0:04:56.6]} 1... Nf6 {[%clk 0:04:58.8]} 2. c3 {[%clk 0:04:56.5]}
2... d5 {[%clk 0:04:57.6]} 3. Nf3 {[%clk 0:04:56.4]} 3... e6 {[%clk 0:04:56]} 4.
Bf4 {[%clk 0:04:56.3]} 4... c5 {[%clk 0:04:52]} 5. Bg3 {[%clk 0:04:56.2]} 5...
Nc6 {[%clk 0:04:51]} 6. e3 {[%clk 0:04:54.6]} 6... Ne4 {[%clk 0:04:46.7]} 7. Bd3
{[%clk 0:04:53.1]} 7... Nxg3 {[%clk 0:04:41.6]} 8. hxg3 {[%clk 0:04:53]} 8... h6
{[%clk 0:04:41]} 9. Nbd2 {[%clk 0:04:52.1]} 9... Be7 {[%clk 0:04:39.7]} 10. Qe2
{[%clk 0:04:51]} 10... Qb6 {[%clk 0:04:35.3]} 11. O-O-O {[%clk 0:04:48.6]} 11...
Bd7 {[%clk 0:04:32]} 12. Kb1 {[%clk 0:04:47.2]} 12... a5 {[%clk 0:04:28.5]} 13.
e4 {[%clk 0:04:33.2]} 13... cxd4 {[%clk 0:04:12.8]} 14. exd5 {[%clk 0:04:31.5]}
14... dxc3 {[%clk 0:04:08.3]} 15. Nc4 {[%clk 0:04:29.6]} 15... Qb4 {[%clk
0:03:50.1]} 16. dxc6 {[%clk 0:04:27.2]} 16... Bxc6 {[%clk 0:03:42]} 17. Nfe5
{[%clk 0:04:25.6]} 17... Bd5 {[%clk 0:03:32.4]} 18. a3 {[%clk 0:04:18.6]} 18...
Qc5 {[%clk 0:03:07.8]} 19. Rc1 {[%clk 0:04:03.3]} 19... cxb2 {[%clk 0:02:23.1]}
0-1

[Event "Live Chess"]
[Site "Chess.com"]
[Date "2023.05.20"]
[Round "-"]
[White "Greenbecker"]
[Black "Conradical12"]
[Result "0-1"]
[WhiteElo "1606"]
[BlackElo "1575"]
[TimeControl "300"]
[EndTime "12:27:15 PDT"]
[Termination "Conradical12 won by checkmate"]

1. e4 {[%clk 0:04:56.7]} 1... e5 {[%clk 0:04:59.5]} 2. Nf3 {[%clk 0:04:52.8]}
2... Nc6 {[%clk 0:04:59]} 3. Bb5 {[%clk 0:04:50.9]} 3... Nf6 {[%clk 0:04:58.3]}
4. O-O {[%clk 0:04:49.8]} 4... Bc5 {[%clk 0:04:56.7]} 5. Re1 {[%clk 0:04:48.4]}
5... Ng4 {[%clk 0:04:54.6]} 6. Rf1 {[%clk 0:04:46.6]} 6... O-O {[%clk
0:04:52.9]} 7. h3 {[%clk 0:04:45.1]} 7... f5 {[%clk 0:04:48]} 8. hxg4 {[%clk
0:04:37.6]} 8... fxg4 {[%clk 0:04:47]} 9. Bxc6 {[%clk 0:04:26.9]} 9... gxf3
{[%clk 0:04:38.1]} 10. Bd5+ {[%clk 0:04:24.7]} 10... Kh8 {[%clk 0:04:36.1]} 11.
d3 {[%clk 0:04:19.4]} 11... c6 {[%clk 0:04:31.5]} 12. Bb3 {[%clk 0:04:16.5]}
12... Qh4 {[%clk 0:04:29.8]} 13. gxf3 {[%clk 0:04:07]} 13... Qg3+ {[%clk
0:04:04.2]} 14. Kh1 {[%clk 0:04:03.5]} 14... Qh3+ {[%clk 0:04:04.1]} 15. Kg1
{[%clk 0:04:02.3]} 15... Rxf3 {[%clk 0:04:04]} 16. Qxf3 {[%clk 0:03:52]} 16...
Qxf3 {[%clk 0:04:03.9]} 17. Be3 {[%clk 0:03:47.8]} 17... Bxe3 {[%clk 0:04:01.7]}
18. fxe3 {[%clk 0:03:46.8]} 18... Qxe3+ {[%clk 0:04:01.6]} 19. Kh1 {[%clk
0:03:43.4]} 19... Qc5 {[%clk 0:04:01.2]} 20. Nc3 {[%clk 0:03:33.7]} 20... a5
{[%clk 0:03:48.5]} 21. Na4 {[%clk 0:03:31.9]} 21... Qe7 {[%clk 0:03:45.4]} 22.
Nb6 {[%clk 0:03:29.1]} 22... Rb8 {[%clk 0:03:43.7]} 23. Rf7 {[%clk 0:03:23.2]}
23... Qh4+ {[%clk 0:03:35.7]} 24. Kg2 {[%clk 0:03:18.5]} 24... Qg4+ {[%clk
0:03:32.2]} 25. Kf2 {[%clk 0:03:12.6]} 25... Qh4+ {[%clk 0:03:27.8]} 26. Kf1
{[%clk 0:03:01.6]} 26... h5 {[%clk 0:03:21.6]} 27. Rf8+ {[%clk 0:02:52.4]} 27...
Kh7 {[%clk 0:03:20.6]} 28. Ke2 {[%clk 0:02:48.5]} 28... Qg4+ {[%clk 0:03:14.2]}
29. Kd2 {[%clk 0:02:42.9]} 29... Qg2+ {[%clk 0:03:06.3]} 30. Kc3 {[%clk
0:02:39.8]} 30... d6 {[%clk 0:03:00]} 31. Rxc8 {[%clk 0:02:37.4]} 31... Rxc8
{[%clk 0:02:58.4]} 32. Nxc8 {[%clk 0:02:36.7]} 32... Qf2 {[%clk 0:02:55.2]} 33.
Rd1 {[%clk 0:02:20.5]} 33... b5 {[%clk 0:02:54]} 34. a3 {[%clk 0:02:18.1]} 34...
c5 {[%clk 0:02:47.3]} 35. Be6 {[%clk 0:02:12.4]} 35... h4 {[%clk 0:02:07.5]} 36.
Bf5+ {[%clk 0:02:02]} 36... g6 {[%clk 0:02:04.8]} 37. Be6 {[%clk 0:01:58.3]}
37... h3 {[%clk 0:01:54.9]} 38. Bxh3 {[%clk 0:01:55.3]} 38... Qf3 {[%clk
0:01:53.3]} 39. Be6 {[%clk 0:01:49.7]} 39... Qxd1 {[%clk 0:01:51.1]} 40. Nxd6
{[%clk 0:01:46.6]} 40... Qe1+ {[%clk 0:01:44.3]} 41. Kb3 {[%clk 0:01:42]} 41...
b4 {[%clk 0:01:42.2]} 42. axb4 {[%clk 0:01:40.8]} 42... Qxb4+ {[%clk 0:01:39.5]}
43. Ka2 {[%clk 0:01:39.3]} 43... g5 {[%clk 0:01:35.3]} 44. Bf5+ {[%clk
0:01:36.1]} 44... Kh6 {[%clk 0:01:33.2]} 45. Nf7+ {[%clk 0:01:34.2]} 45... Kh5
{[%clk 0:01:32]} 46. Nxe5 {[%clk 0:01:30.4]} 46... Kh4 {[%clk 0:01:29.3]} 47.
Nf3+ {[%clk 0:01:27.7]} 47... Kg3 {[%clk 0:01:27.9]} 48. Nxg5 {[%clk 0:01:24.3]}
48... Kf2 {[%clk 0:01:19.1]} 49. c3 {[%clk 0:01:17]} 49... Qa4+ {[%clk 0:01:17]}
50. Kb1 {[%clk 0:01:15.7]} 50... Ke1 {[%clk 0:01:16.4]} 51. Nf3+ {[%clk
0:01:13]} 51... Ke2 {[%clk 0:01:14.5]} 52. Ne5 {[%clk 0:01:09.2]} 52... Kd1
{[%clk 0:00:55.9]} 53. Bg4+ {[%clk 0:01:07.7]} 53... Kd2 {[%clk 0:00:54.4]} 54.
Bh3 {[%clk 0:00:59.1]} 54... Qc2+ {[%clk 0:00:45.4]} 55. Ka2 {[%clk 0:00:56.9]}
55... a4 {[%clk 0:00:43.9]} 56. Be6 {[%clk 0:00:48.7]} 56... Kc1 {[%clk
0:00:34]} 57. Nc4 {[%clk 0:00:46.1]} 57... Qb1+ {[%clk 0:00:32]} 58. Ka3 {[%clk
0:00:42.3]} 58... Qa1# {[%clk 0:00:31.6]} 0-1

[Event "Live Chess"]
[Site "Chess.com"]
[Date "2023.05.20"]
[Round "-"]
[White "domrobson"]
[Black "Wild_Tiger"]
[Result "1-0"]
[WhiteElo "1723"]
[BlackElo "1057"]
[TimeControl "300"]
[EndTime "12:27:15 PDT"]
[Termination "domrobson won by checkmate"]

1. d4 {[%clk 0:04:58.7]} 1... d5 {[%clk 0:04:55.6]} 2. c4 {[%clk 0:04:58.2]}
2... c6 {[%clk 0:04:51.7]} 3. Nf3 {[%clk 0:04:57.6]} 3... Bg4 {[%clk 0:04:49.6]}
4. Ne5 {[%clk 0:04:55.7]} 4... Bh5 {[%clk 0:04:41.3]} 5. Qb3 {[%clk 0:04:52.6]}
5... Nf6 {[%clk 0:04:33.8]} 6. cxd5 {[%clk 0:04:51.2]} 6... Qxd5 {[%clk
0:04:19.6]} 7. Qxb7 {[%clk 0:04:46.3]} 7... Qxd4 {[%clk 0:04:02.3]} 8. Qxa8
{[%clk 0:04:42.1]} 8... Qxe5 {[%clk 0:03:41.6]} 9. Nc3 {[%clk 0:04:40.8]} 9...
e6 {[%clk 0:03:25.9]} 10. e3 {[%clk 0:04:28]} 10... Bb4 {[%clk 0:03:20]} 11. Bd2
{[%clk 0:04:26.4]} 11... O-O {[%clk 0:03:11.9]} 12. Qxa7 {[%clk 0:04:24.8]}
12... Nd5 {[%clk 0:02:53.7]} 13. Bd3 {[%clk 0:04:13.5]} 13... Bxc3 {[%clk
0:02:36.4]} 14. bxc3 {[%clk 0:04:11.1]} 14... Nxc3 {[%clk 0:02:28.4]} 15. O-O
{[%clk 0:04:10.2]} 15... Ne2+ {[%clk 0:02:21.5]} 16. Bxe2 {[%clk 0:04:07.6]}
16... Bxe2 {[%clk 0:02:19.3]} 17. Rfc1 {[%clk 0:04:06.2]} 17... Bb5 {[%clk
0:02:07.6]} 18. Bc3 {[%clk 0:04:03.1]} 18... Qg5 {[%clk 0:01:59]} 19. Qd4 {[%clk
0:04:00.6]} 19... Rd8 {[%clk 0:01:54.2]} 20. h4 {[%clk 0:03:55.3]} 20... Qe7
{[%clk 0:01:49.5]} 21. Qxg7# {[%clk 0:03:53.5]} 1-0

[Event "Live Chess"]
[Site "Chess.com"]
[Date "2023.05.20"]
[Round "-"]
[White "xx_blindpuffin_xx"]
[Black "OSmith06"]
[Result "1-0"]
[WhiteElo "2215"]
[BlackElo "1677"]
[TimeControl "300"]
[EndTime "12:27:21 PDT"]
[Termination "xx_blindpuffin_xx won by resignation"]

1. d4 {[%clk 0:04:58.3]} 1... Nf6 {[%clk 0:04:57.9]} 2. Bf4 {[%clk 0:04:57.9]}
2... e6 {[%clk 0:04:56.5]} 3. e3 {[%clk 0:04:57.6]} 3... d5 {[%clk 0:04:55.4]}
4. Nf3 {[%clk 0:04:57.1]} 4... c5 {[%clk 0:04:54.5]} 5. c3 {[%clk 0:04:56.2]}
5... Nc6 {[%clk 0:04:53]} 6. Nbd2 {[%clk 0:04:55.4]} 6... Bd6 {[%clk 0:04:52.5]}
7. Bg3 {[%clk 0:04:54.4]} 7... O-O {[%clk 0:04:51]} 8. Bd3 {[%clk 0:04:53.7]}
8... a6 {[%clk 0:04:46.6]} 9. e4 {[%clk 0:04:52.4]} 9... cxd4 {[%clk 0:04:44.8]}
10. e5 {[%clk 0:04:50.1]} 10... dxc3 {[%clk 0:04:42.6]} 11. bxc3 {[%clk
0:04:48.6]} 11... Nxe5 {[%clk 0:04:33.5]} 12. Nxe5 {[%clk 0:04:46.3]} 12... Qa5
{[%clk 0:04:27.8]} 13. Qc2 {[%clk 0:04:37.5]} 13... d4 {[%clk 0:04:21.7]} 14.
Ndc4 {[%clk 0:04:32.9]} 14... Qxc3+ {[%clk 0:04:04.4]} 15. Qxc3 {[%clk
0:04:31.4]} 15... dxc3 {[%clk 0:04:04.3]} 16. Nxd6 {[%clk 0:04:31]} 1-0

[Event "Live Chess"]
[Site "Chess.com"]
[Date "2023.05.20"]
[Round "-"]
[White "LiamClery2020"]
[Black "jennybobby44"]
[Result "1-0"]
[WhiteElo "2085"]
[BlackElo "1871"]
[TimeControl "300"]
[EndTime "12:27:32 PDT"]
[Termination "LiamClery2020 won by checkmate"]

1. e4 {[%clk 0:04:59.7]} 1... c5 {[%clk 0:04:58.9]} 2. Nf3 {[%clk 0:04:57]} 2...
d6 {[%clk 0:04:58.2]} 3. Bb5+ {[%clk 0:04:56.3]} 3... Bd7 {[%clk 0:04:57.1]} 4.
Bxd7+ {[%clk 0:04:55.8]} 4... Qxd7 {[%clk 0:04:56.7]} 5. O-O {[%clk 0:04:55.7]}
5... e6 {[%clk 0:04:55.3]} 6. Re1 {[%clk 0:04:55.3]} 6... Nc6 {[%clk 0:04:53.3]}
7. c3 {[%clk 0:04:54.8]} 7... g6 {[%clk 0:04:50.1]} 8. d4 {[%clk 0:04:54.3]}
8... cxd4 {[%clk 0:04:49]} 9. cxd4 {[%clk 0:04:54.2]} 9... Bg7 {[%clk
0:04:32.3]} 10. Nc3 {[%clk 0:04:52.8]} 10... a6 {[%clk 0:04:22.3]} 11. Be3
{[%clk 0:04:50.1]} 11... Nge7 {[%clk 0:04:20.9]} 12. Na4 {[%clk 0:04:49.4]}
12... Rb8 {[%clk 0:03:39.9]} 13. Nb6 {[%clk 0:04:47.7]} 13... Qd8 {[%clk
0:03:35.6]} 14. d5 {[%clk 0:04:44.5]} 14... Ne5 {[%clk 0:03:28.1]} 15. Nxe5
{[%clk 0:04:43.2]} 15... Bxe5 {[%clk 0:03:26.3]} 16. Qa4+ {[%clk 0:04:42.4]}
16... Kf8 {[%clk 0:03:18.7]} 17. Nd7+ {[%clk 0:04:41.6]} 17... Kg7 {[%clk
0:03:17.3]} 18. Nxb8 {[%clk 0:04:39.9]} 18... Qxb8 {[%clk 0:03:17.2]} 19. f4
{[%clk 0:04:37.8]} 19... Bxb2 {[%clk 0:03:06.4]} 20. Bd4+ {[%clk 0:04:36.4]}
20... Bxd4+ {[%clk 0:03:04]} 21. Qxd4+ {[%clk 0:04:36.3]} 21... f6 {[%clk
0:02:48.4]} 22. dxe6 {[%clk 0:04:35.2]} 22... Rd8 {[%clk 0:02:39.7]} 23. Qb2
{[%clk 0:04:24.2]} 23... b5 {[%clk 0:02:38]} 24. e5 {[%clk 0:04:22.9]} 24...
dxe5 {[%clk 0:02:36.3]} 25. fxe5 {[%clk 0:04:22.4]} 25... f5 {[%clk 0:02:33.9]}
26. Rad1 {[%clk 0:04:20.4]} 26... Rxd1 {[%clk 0:02:28.5]} 27. Rxd1 {[%clk
0:04:18.9]} 27... Qb6+ {[%clk 0:02:26.5]} 28. Kf1 {[%clk 0:04:17.9]} 28... Qxe6
{[%clk 0:02:25.7]} 29. Qd4 {[%clk 0:04:16.5]} 29... Qxa2 {[%clk 0:02:20.5]} 30.
e6+ {[%clk 0:04:13.8]} 30... Kh6 {[%clk 0:02:02.5]} 31. Qh4+ {[%clk 0:04:12.5]}
31... Kg7 {[%clk 0:01:59]} 32. Qxe7+ {[%clk 0:04:12.4]} 32... Kh6 {[%clk
0:01:58.2]} 33. Qh4+ {[%clk 0:04:11.7]} 33... Kg7 {[%clk 0:01:57.3]} 34. Rd7+
{[%clk 0:04:11.6]} 34... Kf8 {[%clk 0:01:54.7]} 35. Qd8# {[%clk 0:04:11.5]} 1-0

[Event "Live Chess"]
[Site "Chess.com"]
[Date "2023.05.20"]
[Round "-"]
[White "Delacorta"]
[Black "mikeybaby1986"]
[Result "1-0"]
[WhiteElo "1422"]
[BlackElo "1288"]
[TimeControl "300"]
[EndTime "12:28:06 PDT"]
[Termination "Delacorta won by resignation"]

1. d4 {[%clk 0:04:57.8]} 1... d5 {[%clk 0:04:58.4]} 2. Nf3 {[%clk 0:04:57.7]}
2... Nc6 {[%clk 0:04:54.6]} 3. e3 {[%clk 0:04:57.1]} 3... Bg4 {[%clk 0:04:46]}
4. Bd3 {[%clk 0:04:50.6]} 4... e5 {[%clk 0:04:42.6]} 5. dxe5 {[%clk 0:04:48.7]}
5... Nxe5 {[%clk 0:04:41.5]} 6. Be2 {[%clk 0:04:48.1]} 6... Qf6 {[%clk
0:04:36.6]} 7. Nbd2 {[%clk 0:04:42.1]} 7... O-O-O {[%clk 0:04:32.9]} 8. Nxe5
{[%clk 0:04:37.5]} 8... Bxe2 {[%clk 0:04:29]} 9. Qxe2 {[%clk 0:04:33.2]} 9...
Qxe5 {[%clk 0:04:27.8]} 10. Nf3 {[%clk 0:04:28.4]} 10... Qf6 {[%clk 0:04:22.7]}
11. O-O {[%clk 0:04:27.2]} 11... Bc5 {[%clk 0:04:17.6]} 12. Rb1 {[%clk
0:04:24.7]} 12... Nh6 {[%clk 0:04:00.3]} 13. b4 {[%clk 0:04:18.9]} 13... Bb6
{[%clk 0:03:48.5]} 14. Bb2 {[%clk 0:04:16.4]} 14... Qe6 {[%clk 0:03:42.5]} 15.
a4 {[%clk 0:03:52.2]} 15... d4 {[%clk 0:03:15.8]} 16. a5 {[%clk 0:03:35.5]}
16... Ng4 {[%clk 0:03:01.5]} 17. axb6 {[%clk 0:03:26.2]} 17... dxe3 {[%clk
0:02:58.7]} 18. bxa7 {[%clk 0:03:15.2]} 18... exf2+ {[%clk 0:02:51.4]} 19. Rxf2
{[%clk 0:03:14.3]} 19... Kd7 {[%clk 0:02:38.3]} 20. Qxe6+ {[%clk 0:03:07.2]}
20... Kxe6 {[%clk 0:02:36.4]} 21. Re2+ {[%clk 0:03:01.4]} 21... Kf5 {[%clk
0:02:29.4]} 22. Rf1 {[%clk 0:02:52.7]} 22... Kg6 {[%clk 0:02:25.2]} 23. Ne5+
{[%clk 0:02:48.2]} 23... Nxe5 {[%clk 0:02:23.2]} 24. Rxe5 {[%clk 0:02:48.1]}
24... f6 {[%clk 0:02:18.1]} 25. Re7 {[%clk 0:02:46.2]} 1-0

[Event "Live Chess"]
[Site "Chess.com"]
[Date "2023.05.20"]
[Round "-"]
[White "Richardallis"]
[Black "apl_trainer"]
[Result "1-0"]
[WhiteElo "1752"]
[BlackElo "1645"]
[TimeControl "300"]
[EndTime "12:28:07 PDT"]
[Termination "Richardallis won by resignation"]

1. d4 {[%clk 0:04:58.4]} 1... Nf6 {[%clk 0:04:58.8]} 2. Nf3 {[%clk 0:04:57.4]}
2... c5 {[%clk 0:04:57.6]} 3. c3 {[%clk 0:04:56.1]} 3... d5 {[%clk 0:04:55.9]}
4. Bg5 {[%clk 0:04:54.6]} 4... Ne4 {[%clk 0:04:51.5]} 5. Bf4 {[%clk 0:04:53.1]}
5... Qb6 {[%clk 0:04:47.3]} 6. Qb3 {[%clk 0:04:51.7]} 6... c4 {[%clk 0:04:41.3]}
7. Qxb6 {[%clk 0:04:50]} 7... axb6 {[%clk 0:04:40.2]} 8. Nbd2 {[%clk 0:04:49.3]}
8... Nf6 {[%clk 0:04:20.9]} 9. a3 {[%clk 0:04:45.9]} 9... Bf5 {[%clk 0:04:18.6]}
10. g3 {[%clk 0:04:38.2]} 10... e6 {[%clk 0:04:17]} 11. Bg2 {[%clk 0:04:36.7]}
11... Nc6 {[%clk 0:04:15.2]} 12. O-O {[%clk 0:04:35]} 12... h6 {[%clk 0:04:14]}
13. Nh4 {[%clk 0:04:33.9]} 13... Bh7 {[%clk 0:04:12]} 14. Nhf3 {[%clk
0:04:27.6]} 14... b5 {[%clk 0:04:10.3]} 15. Rac1 {[%clk 0:04:25.8]} 15... Be7
{[%clk 0:04:08.1]} 16. Be5 {[%clk 0:04:23.9]} 16... Nxe5 {[%clk 0:03:58.1]} 17.
Nxe5 {[%clk 0:04:22.8]} 17... Nd7 {[%clk 0:03:56.7]} 18. Nxd7 {[%clk 0:04:21.4]}
18... Kxd7 {[%clk 0:03:55.6]} 19. e4 {[%clk 0:04:20.6]} 19... Kd6 {[%clk
0:03:47.6]} 20. Rfe1 {[%clk 0:04:17.9]} 20... Rhe8 {[%clk 0:03:37.3]} 21. Re2
{[%clk 0:04:14.1]} 21... g5 {[%clk 0:03:22.7]} 22. Rce1 {[%clk 0:04:12.4]} 22...
g4 {[%clk 0:03:12.1]} 23. exd5 {[%clk 0:04:10.9]} 23... exd5 {[%clk 0:03:10]}
24. Bxd5 {[%clk 0:04:07.6]} 24... Bd3 {[%clk 0:02:51.7]} 25. Re5 {[%clk
0:04:01.5]} 25... Bg5 {[%clk 0:02:21.7]} 26. Rxe8 {[%clk 0:03:48.9]} 26... Rxe8
{[%clk 0:02:20.4]} 27. Rxe8 {[%clk 0:03:47.5]} 27... Kxd5 {[%clk 0:02:11.4]} 28.
Nf1 {[%clk 0:03:42.5]} 28... Bc1 {[%clk 0:02:10]} 29. Re5+ {[%clk 0:03:38.4]}
29... Kc6 {[%clk 0:02:07.1]} 30. Rc5+ {[%clk 0:03:36.8]} 30... Kb6 {[%clk
0:02:04.5]} 31. Ne3 {[%clk 0:03:34.9]} 31... Bxb2 {[%clk 0:01:59.4]} 32. Nd5+
{[%clk 0:03:33.9]} 32... Ka5 {[%clk 0:01:47.8]} 33. Nc7 {[%clk 0:03:24]} 33...
Bxc3 {[%clk 0:01:44.1]} 34. Rxb5+ {[%clk 0:03:22.8]} 34... Ka4 {[%clk
0:01:38.7]} 35. Rxb7 {[%clk 0:03:22.3]} 35... Bxd4 {[%clk 0:01:35.3]} 36. Nd5
{[%clk 0:03:05.9]} 36... c3 {[%clk 0:01:24.5]} 37. Rb4+ {[%clk 0:02:49.3]} 37...
Kxa3 {[%clk 0:01:18.8]} 38. Rxd4 {[%clk 0:02:47]} 38... c2 {[%clk 0:01:17.5]}
39. Rxd3+ {[%clk 0:02:46.1]} 1-0

[Event "Live Chess"]
[Site "Chess.com"]
[Date "2023.05.20"]
[Round "-"]
[White "LaupMiths"]
[Black "JohanKjeldahl"]
[Result "0-1"]
[WhiteElo "1814"]
[BlackElo "1791"]
[TimeControl "300"]
[EndTime "12:28:09 PDT"]
[Termination "JohanKjeldahl won by resignation"]

1. e4 {[%clk 0:04:57]} 1... c5 {[%clk 0:04:58.1]} 2. f4 {[%clk 0:04:54.3]} 2...
Nc6 {[%clk 0:04:55]} 3. Nc3 {[%clk 0:04:52.4]} 3... e6 {[%clk 0:04:54.1]} 4. Bc4
{[%clk 0:04:49.8]} 4... a6 {[%clk 0:04:52.9]} 5. a4 {[%clk 0:04:48.1]} 5... Qc7
{[%clk 0:04:50.5]} 6. d3 {[%clk 0:04:46]} 6... g6 {[%clk 0:04:47.5]} 7. Nf3
{[%clk 0:04:44.5]} 7... Bg7 {[%clk 0:04:47.1]} 8. O-O {[%clk 0:04:41.6]} 8...
Nge7 {[%clk 0:04:46.1]} 9. Be3 {[%clk 0:04:39.8]} 9... b6 {[%clk 0:04:44.6]} 10.
Qe1 {[%clk 0:04:35.3]} 10... Nd4 {[%clk 0:04:43.3]} 11. Rc1 {[%clk 0:04:33.4]}
11... Bb7 {[%clk 0:04:40.2]} 12. g4 {[%clk 0:04:24.8]} 12... O-O-O {[%clk
0:04:34.1]} 13. f5 {[%clk 0:04:22.3]} 13... gxf5 {[%clk 0:04:31.3]} 14. gxf5
{[%clk 0:04:19.2]} 14... Nxf3+ {[%clk 0:04:21.1]} 15. Rxf3 {[%clk 0:04:16.6]}
15... Be5 {[%clk 0:04:19.5]} 16. f6 {[%clk 0:04:08.3]} 16... Rhg8+ {[%clk
0:04:12.3]} 17. Kh1 {[%clk 0:04:06.4]} 17... Ng6 {[%clk 0:04:04.6]} 18. Qf2
{[%clk 0:03:57.4]} 18... d5 {[%clk 0:03:55]} 19. exd5 {[%clk 0:03:54.6]} 19...
exd5 {[%clk 0:03:53]} 0-1

[Event "Live Chess"]
[Site "Chess.com"]
[Date "2023.05.20"]
[Round "-"]
[White "azimchess2019"]
[Black "bigedd"]
[Result "1-0"]
[WhiteElo "1376"]
[BlackElo "713"]
[TimeControl "300"]
[EndTime "12:28:16 PDT"]
[Termination "azimchess2019 won by resignation"]

1. d4 {[%clk 0:04:59.3]} 1... d5 {[%clk 0:04:55.7]} 2. c4 {[%clk 0:04:59.2]}
2... dxc4 {[%clk 0:04:54.2]} 3. e4 {[%clk 0:04:58.2]} 3... e6 {[%clk 0:04:52.1]}
4. Nc3 {[%clk 0:04:53.6]} 4... Nc6 {[%clk 0:04:50.9]} 5. Be3 {[%clk 0:04:51.6]}
5... Bb4 {[%clk 0:04:45.5]} 6. f3 {[%clk 0:04:49.4]} 6... Nge7 {[%clk
0:04:42.2]} 7. Bxc4 {[%clk 0:04:48.4]} 7... O-O {[%clk 0:04:39.2]} 8. Ne2 {[%clk
0:04:47.5]} 8... Re8 {[%clk 0:04:37.2]} 9. O-O {[%clk 0:04:46.8]} 9... e5 {[%clk
0:04:32.8]} 10. d5 {[%clk 0:04:45.7]} 10... h6 {[%clk 0:04:22.4]} 11. dxc6
{[%clk 0:04:44.2]} 11... Nxc6 {[%clk 0:04:20.6]} 12. Qxd8 {[%clk 0:04:43.1]}
12... Rxd8 {[%clk 0:04:19.3]} 13. Rad1 {[%clk 0:04:42.7]} 13... Bxc3 {[%clk
0:04:16.2]} 14. Nxc3 {[%clk 0:04:41.8]} 14... Be6 {[%clk 0:04:10.5]} 15. Bxe6
{[%clk 0:04:40.5]} 15... fxe6 {[%clk 0:04:08.8]} 16. Nb5 {[%clk 0:04:37.3]}
16... Rxd1 {[%clk 0:04:05.3]} 17. Rxd1 {[%clk 0:04:35.9]} 17... a6 {[%clk
0:04:04.3]} 18. Nxc7 {[%clk 0:04:35.1]} 18... Rc8 {[%clk 0:04:03.2]} 19. Nxe6
{[%clk 0:04:33.5]} 19... Nb4 {[%clk 0:03:57.6]} 20. Rd7 {[%clk 0:04:26.2]} 20...
Nxa2 {[%clk 0:03:49.7]} 21. Rxg7+ {[%clk 0:04:25]} 21... Kh8 {[%clk 0:03:47]}
22. Bxh6 {[%clk 0:04:21.4]} 22... Rc6 {[%clk 0:03:33.1]} 23. Re7 {[%clk
0:04:04.7]} 23... Rxe6 {[%clk 0:03:27.7]} 24. Rxe6 {[%clk 0:04:03.4]} 24... Kh7
{[%clk 0:03:26.7]} 25. Bg5 {[%clk 0:04:02.5]} 25... Nb4 {[%clk 0:03:22.5]} 26.
Rxe5 {[%clk 0:04:01.8]} 26... Nd3 {[%clk 0:03:19.6]} 27. Re7+ {[%clk 0:04:01.1]}
27... Kg6 {[%clk 0:03:17.7]} 28. Be3 {[%clk 0:03:58.4]} 28... Nxb2 {[%clk
0:03:12.9]} 29. Rxb7 {[%clk 0:03:57.5]} 29... Nc4 {[%clk 0:03:11.2]} 30. Bf2
{[%clk 0:03:54.9]} 1-0